[Event "Titled Tuesday Blitz July 05 Late 2022"]
[White "Nguyen, Quoc Hy"]
[Black "Sanchez Alvares, Kelvin Antonio"]
[WhiteFideId "12410853"]
[BlackFideId "3906680"]
[WhiteElo "1938"]
[BlackElo "2193"]
[Result "0-1"]
[Round "10"]
[TimeControl "180+1"]
[Date "2022.07.06"]
[WhiteClock "0:00:40"]
[BlackClock "0:00:20"]

1. e4 {[%clk 0:02:57]}  e5 {[%clk 0:02:57]} 2. Nf3 {[%clk 0:02:57]}  Nc6 {[%clk 0:02:56]} 3. Bb5 {[%clk 0:02:56]}  a6 {[%clk 0:02:56]} 4. Bxc6 {[%clk 0:02:56]}  dxc6 {[%clk 0:02:56]} 5. O-O {[%clk 0:02:56]}  Bg4 {[%clk 0:02:55]} 6. h3 {[%clk 0:02:55]}  h5 {[%clk 0:02:50]} 7. d3 {[%clk 0:02:53]}  Qf6 {[%clk 0:02:39]} 8. Nbd2 {[%clk 0:02:53]}  Ne7 {[%clk 0:02:39]} 9. Re1 {[%clk 0:02:53]}  Bxf3 {[%clk 0:02:25]} 10. Qxf3 {[%clk 0:02:51]}  Qxf3 {[%clk 0:02:25]} 11. Nxf3 {[%clk 0:02:51]}  Ng6 {[%clk 0:02:25]} 12. d4 {[%clk 0:02:52]}  exd4 {[%clk 0:02:20]} 13. Nxd4 {[%clk 0:02:52]}  O-O-O {[%clk 0:02:20]} 14. Nf5 {[%clk 0:02:50]}  Ne7 {[%clk 0:02:17]} 15. Bg5 {[%clk 0:02:44]}  f6 {[%clk 0:02:15]} 16. Nxe7+ {[%clk 0:02:43]}  Bxe7 {[%clk 0:02:15]} 17. Be3 {[%clk 0:02:43]}  g5 {[%clk 0:02:08]} 18. f4 {[%clk 0:02:41]}  gxf4 {[%clk 0:02:06]} 19. Bxf4 {[%clk 0:02:41]}  Rdg8 {[%clk 0:02:05]} 20. Rf1 {[%clk 0:02:34]}  Rg6 {[%clk 0:02:04]} 21. Rad1 {[%clk 0:02:26]}  Rhg8 {[%clk 0:01:52]} 22. Rd2 {[%clk 0:02:26]}  Bd6 {[%clk 0:01:48]} 23. Bxd6 {[%clk 0:02:23]}  cxd6 {[%clk 0:01:46]} 24. Rf5 {[%clk 0:02:24]}  Re8 {[%clk 0:01:27]} 25. Rxd6 {[%clk 0:02:18]}  Rxe4 {[%clk 0:01:23]} 26. Rdxf6 {[%clk 0:02:18]}  Rxf6 {[%clk 0:01:20]} 27. Rxf6 {[%clk 0:02:19]}  Re2 {[%clk 0:01:20]} 28. Rf2 {[%clk 0:02:19]}  Re1+ {[%clk 0:01:18]} 29. Kh2 {[%clk 0:02:19]}  Kd7 {[%clk 0:01:19]} 30. Rf5 {[%clk 0:02:12]}  Re2 {[%clk 0:01:13]} 31. Rxh5 {[%clk 0:02:12]}  Rxc2 {[%clk 0:01:12]} 32. Rg5 {[%clk 0:02:12]}  Rxb2 {[%clk 0:01:09]} 33. h4 {[%clk 0:02:13]}  Rb5 {[%clk 0:01:04]} 34. Rg8 {[%clk 0:02:02]}  Ke7 {[%clk 0:00:59]} 35. g4 {[%clk 0:01:59]}  Kf7 {[%clk 0:00:59]} 36. Rb8 {[%clk 0:01:59]}  c5 {[%clk 0:00:56]} 37. h5 {[%clk 0:01:50]}  c4 {[%clk 0:00:50]} 38. Rc8 {[%clk 0:01:49]}  Kf6 {[%clk 0:00:46]} 39. Rxc4 {[%clk 0:01:47]}  Kg5 {[%clk 0:00:46]} 40. Kg3 {[%clk 0:01:45]}  Ra5 {[%clk 0:00:43]} 41. a4 {[%clk 0:01:44]}  Rd5 {[%clk 0:00:36]} 42. Rc3 {[%clk 0:00:58]}  b6 {[%clk 0:00:36]} 43. Rb3 {[%clk 0:00:58]}  Rd4 {[%clk 0:00:30]} 44. h6 {[%clk 0:00:42]}  Rxg4+ {[%clk 0:00:24]} 45. Kh2 {[%clk 0:00:43]}  Rh4+ {[%clk 0:00:23]} 46. Kg3 {[%clk 0:00:40]}  Rxh6 {[%clk 0:00:22]} 47. Kf3 {[%clk 0:00:40]}  Rh3+ {[%clk 0:00:20]} 0-1


[Site "https://www.chess.com"]

[Event "Titled Tuesday Blitz July 05 Late 2022"]
[White "Noboa Silva, Kevin"]
[Black "Jaskolka, Tomasz"]
[WhiteFideId "3618471"]
[BlackFideId "1170791"]
[WhiteElo "2172"]
[BlackElo "2073"]
[Result "0-1"]
[Round "10"]
[TimeControl "180+1"]
[Date "2022.07.06"]
[WhiteClock "0:00:11"]
[BlackClock "0:00:21"]

1. e4 {[%clk 0:02:49]}  c5 {[%clk 0:02:59]} 2. c3 {[%clk 0:02:49]}  Nf6 {[%clk 0:02:58]} 3. e5 {[%clk 0:02:48]}  Nd5 {[%clk 0:02:58]} 4. d4 {[%clk 0:02:49]}  cxd4 {[%clk 0:02:59]} 5. cxd4 {[%clk 0:02:50]}  e6 {[%clk 0:02:59]} 6. Bc4 {[%clk 0:02:41]}  d6 {[%clk 0:02:58]} 7. Nf3 {[%clk 0:02:38]}  Be7 {[%clk 0:02:57]} 8. Qe2 {[%clk 0:02:38]}  O-O {[%clk 0:02:55]} 9. O-O {[%clk 0:02:39]}  b6 {[%clk 0:02:54]} 10. Rd1 {[%clk 0:02:38]}  Bb7 {[%clk 0:02:54]} 11. Bxd5 {[%clk 0:02:38]}  exd5 {[%clk 0:02:54]} 12. Nc3 {[%clk 0:02:38]}  Nd7 {[%clk 0:02:53]} 13. Bf4 {[%clk 0:02:38]}  dxe5 {[%clk 0:02:54]} 14. dxe5 {[%clk 0:02:38]}  Nc5 {[%clk 0:02:51]} 15. Nd4 {[%clk 0:02:35]}  Ne6 {[%clk 0:02:50]} 16. Be3 {[%clk 0:02:28]}  Bc5 {[%clk 0:02:39]} 17. Rd2 {[%clk 0:02:10]}  Qh4 {[%clk 0:02:12]} 18. Rad1 {[%clk 0:01:59]}  g6 {[%clk 0:02:05]} 19. Nf3 {[%clk 0:01:57]}  Qh5 {[%clk 0:01:57]} 20. Nxd5 {[%clk 0:01:55]}  Kh8 {[%clk 0:01:52]} 21. Bxc5 {[%clk 0:01:43]}  bxc5 {[%clk 0:01:51]} 22. h3 {[%clk 0:01:41]}  Bxd5 {[%clk 0:01:48]} 23. Rxd5 {[%clk 0:01:41]}  Nf4 {[%clk 0:01:48]} 24. Qe3 {[%clk 0:01:33]}  Nxd5 {[%clk 0:01:47]} 25. Rxd5 {[%clk 0:01:34]}  Rad8 {[%clk 0:01:45]} 26. Rxc5 {[%clk 0:01:31]}  Qf5 {[%clk 0:01:41]} 27. Qc3 {[%clk 0:01:29]}  Rd1+ {[%clk 0:01:34]} 28. Kh2 {[%clk 0:01:27]}  Rd3 {[%clk 0:01:34]} 29. Qc1 {[%clk 0:01:15]}  Rfd8 {[%clk 0:01:31]} 30. Qh6 {[%clk 0:00:58]}  Rxf3 {[%clk 0:00:58]} 31. gxf3 {[%clk 0:00:54]}  Qxf3 {[%clk 0:00:59]} 32. Qh4 {[%clk 0:00:50]}  Rd2 {[%clk 0:00:43]} 33. Rc8+ {[%clk 0:00:25]}  Kg7 {[%clk 0:00:43]} 34. Qf6+ {[%clk 0:00:20]}  Qxf6 {[%clk 0:00:43]} 35. exf6+ {[%clk 0:00:21]}  Kxf6 {[%clk 0:00:43]} 36. Rb8 {[%clk 0:00:17]}  Rxf2+ {[%clk 0:00:41]} 37. Kg3 {[%clk 0:00:17]}  Rf5 {[%clk 0:00:39]} 38. Rb7 {[%clk 0:00:17]}  Ra5 {[%clk 0:00:39]} 39. a3 {[%clk 0:00:17]}  h5 {[%clk 0:00:40]} 40. h4 {[%clk 0:00:17]}  Ra4 {[%clk 0:00:37]} 41. Kf3 {[%clk 0:00:14]}  a5 {[%clk 0:00:36]} 42. Rb5 {[%clk 0:00:13]}  Kg7 {[%clk 0:00:25]} 43. Kg3 {[%clk 0:00:11]}  f6 {[%clk 0:00:19]} 44. Rb6 {[%clk 0:00:10]}  Rg4+ {[%clk 0:00:18]} 45. Kh3 {[%clk 0:00:10]}  a4 {[%clk 0:00:18]} 46. b4 {[%clk 0:00:09]}  axb3 {[%clk 0:00:18]} 47. Rxb3 {[%clk 0:00:09]}  Ra4 {[%clk 0:00:18]} 48. Kg3 {[%clk 0:00:09]}  g5 {[%clk 0:00:18]} 49. hxg5 {[%clk 0:00:09]}  fxg5 {[%clk 0:00:19]} 50. Kh3 {[%clk 0:00:09]}  Kg6 {[%clk 0:00:20]} 51. Kg3 {[%clk 0:00:09]}  h4+ {[%clk 0:00:18]} 52. Kh3 {[%clk 0:00:09]}  Kh5 {[%clk 0:00:19]} 53. Kh2 {[%clk 0:00:08]}  Kg4 {[%clk 0:00:17]} 54. Rb4+ {[%clk 0:00:07]}  Rxb4 {[%clk 0:00:17]} 55. axb4 {[%clk 0:00:08]}  Kf4 {[%clk 0:00:18]} 56. b5 {[%clk 0:00:08]}  Ke5 {[%clk 0:00:18]} 57. b6 {[%clk 0:00:09]}  Kd6 {[%clk 0:00:19]} 58. Kh3 {[%clk 0:00:10]}  Kc6 {[%clk 0:00:19]} 59. Kg4 {[%clk 0:00:10]}  Kxb6 {[%clk 0:00:20]} 60. Kh5 {[%clk 0:00:10]}  h3 {[%clk 0:00:19]} 61. Kxg5 {[%clk 0:00:11]}  h2 {[%clk 0:00:20]} 62. Kg4 {[%clk 0:00:11]}  h1=Q {[%clk 0:00:21]} 0-1


[Site "https://www.chess.com"]

[Event "Titled Tuesday Blitz July 05 Late 2022"]
[White "Oparin, Grigoriy"]
[Black "Zhigalko, Sergei"]
[WhiteFideId "24125890"]
[BlackFideId "13502956"]
[WhiteElo "2639"]
[BlackElo "2662"]
[Result "0-1"]
[Round "10"]
[TimeControl "180+1"]
[Date "2022.07.05"]
[WhiteClock "0:00:03"]
[BlackClock "0:00:05"]

1. d4 {[%clk 0:03:00]}  Nf6 {[%clk 0:02:59]} 2. c4 {[%clk 0:03:01]}  e6 {[%clk 0:03:00]} 3. Nf3 {[%clk 0:03:02]}  b6 {[%clk 0:02:59]} 4. g3 {[%clk 0:03:02]}  Ba6 {[%clk 0:03:00]} 5. b3 {[%clk 0:03:03]}  Bb4+ {[%clk 0:03:00]} 6. Bd2 {[%clk 0:03:03]}  Be7 {[%clk 0:03:01]} 7. Bg2 {[%clk 0:03:03]}  c6 {[%clk 0:03:00]} 8. Bc3 {[%clk 0:03:02]}  d5 {[%clk 0:03:01]} 9. Ne5 {[%clk 0:02:58]}  Nfd7 {[%clk 0:03:00]} 10. Nd3 {[%clk 0:02:55]}  dxc4 {[%clk 0:02:52]} 11. Nb4 {[%clk 0:02:55]}  cxb3 {[%clk 0:02:44]} 12. Nxa6 {[%clk 0:02:53]}  b2 {[%clk 0:02:19]} 13. Bxb2 {[%clk 0:02:51]}  Nxa6 {[%clk 0:02:18]} 14. O-O {[%clk 0:02:40]}  Nb4 {[%clk 0:02:11]} 15. a3 {[%clk 0:02:29]}  Nd5 {[%clk 0:02:10]} 16. e4 {[%clk 0:02:29]}  N5f6 {[%clk 0:02:10]} 17. Nc3 {[%clk 0:02:17]}  O-O {[%clk 0:02:10]} 18. Qe2 {[%clk 0:02:17]}  Re8 {[%clk 0:01:56]} 19. Rad1 {[%clk 0:02:18]}  b5 {[%clk 0:01:51]} 20. g4 {[%clk 0:02:01]}  Nb6 {[%clk 0:01:48]} 21. g5 {[%clk 0:02:00]}  Nfd7 {[%clk 0:01:48]} 22. h4 {[%clk 0:02:00]}  Nc4 {[%clk 0:01:46]} 23. Ba1 {[%clk 0:02:00]}  Bxa3 {[%clk 0:01:44]} 24. Rd3 {[%clk 0:01:46]}  a5 {[%clk 0:01:18]} 25. h5 {[%clk 0:01:33]}  Qxg5 {[%clk 0:01:03]} 26. Rg3 {[%clk 0:01:33]}  Qd2 {[%clk 0:00:32]} 27. Qg4 {[%clk 0:01:28]}  Qh6 {[%clk 0:00:32]} 28. e5 {[%clk 0:01:09]}  Rac8 {[%clk 0:00:26]} 29. Ne4 {[%clk 0:01:07]}  Be7 {[%clk 0:00:15]} 30. f4 {[%clk 0:00:51]}  b4 {[%clk 0:00:12]} 31. Qe2 {[%clk 0:00:43]}  Ncb6 {[%clk 0:00:10]} 32. Bb2 {[%clk 0:00:37]}  f5 {[%clk 0:00:09]} 33. exf6 {[%clk 0:00:36]}  Bxf6 {[%clk 0:00:09]} 34. Bc1 {[%clk 0:00:29]}  Bxd4+ {[%clk 0:00:08]} 35. Kh1 {[%clk 0:00:29]}  Nd5 {[%clk 0:00:03]} 36. f5 {[%clk 0:00:28]}  Be3 {[%clk 0:00:03]} 37. Rxe3 {[%clk 0:00:16]}  exf5 {[%clk 0:00:04]} 38. Nf6+ {[%clk 0:00:16]}  N7xf6 {[%clk 0:00:02]} 39. Rxe8+ {[%clk 0:00:10]}  Rxe8 {[%clk 0:00:03]} 40. Qxe8+ {[%clk 0:00:05]}  Nxe8 {[%clk 0:00:04]} 41. Bxh6 {[%clk 0:00:06]}  gxh6 {[%clk 0:00:04]} 42. Rxf5 {[%clk 0:00:06]}  Nec7 {[%clk 0:00:04]} 43. Rf3 {[%clk 0:00:04]}  a4 {[%clk 0:00:05]} 44. Rg3+ {[%clk 0:00:05]}  Kf7 {[%clk 0:00:05]} 45. Bf1 {[%clk 0:00:05]}  b3 {[%clk 0:00:05]} 46. Bc4 {[%clk 0:00:06]}  b2 {[%clk 0:00:05]} 47. Ba2 {[%clk 0:00:07]}  Nb5 {[%clk 0:00:05]} 48. Rg2 {[%clk 0:00:06]}  a3 {[%clk 0:00:05]} 49. Rc2 {[%clk 0:00:07]}  Ke7 {[%clk 0:00:04]} 50. Rxc6 {[%clk 0:00:03]}  Ndc3 {[%clk 0:00:05]} 0-1


[Site "https://www.chess.com"]

[Event "Titled Tuesday Blitz July 05 Late 2022"]
[White "Pakleza, Zbigniew"]
[Black "Shuvalova, Polina"]
[WhiteFideId "1119290"]
[BlackFideId "24171760"]
[WhiteElo "2467"]
[BlackElo "2330"]
[Result "1-0"]
[Round "10"]
[TimeControl "180+1"]
[Date "2022.07.05"]
[WhiteClock "0:00:16"]
[BlackClock "0:01:58"]

1. d4 {[%clk 0:03:00]}  Nf6 {[%clk 0:02:58]} 2. Nf3 {[%clk 0:03:01]}  d5 {[%clk 0:02:56]} 3. Bf4 {[%clk 0:03:00]}  e6 {[%clk 0:02:57]} 4. e3 {[%clk 0:03:00]}  Bd6 {[%clk 0:02:57]} 5. Bg3 {[%clk 0:02:58]}  O-O {[%clk 0:02:57]} 6. Nbd2 {[%clk 0:02:58]}  b6 {[%clk 0:02:57]} 7. Ne5 {[%clk 0:02:57]}  c5 {[%clk 0:02:57]} 8. c3 {[%clk 0:02:57]}  Qc7 {[%clk 0:02:57]} 9. f4 {[%clk 0:02:56]}  Ba6 {[%clk 0:02:56]} 10. Bxa6 {[%clk 0:02:55]}  Nxa6 {[%clk 0:02:56]} 11. O-O {[%clk 0:02:54]}  Rac8 {[%clk 0:02:55]} 12. Qf3 {[%clk 0:02:49]}  Nd7 {[%clk 0:02:53]} 13. Rad1 {[%clk 0:02:39]}  Nab8 {[%clk 0:02:53]} 14. h3 {[%clk 0:02:33]}  a5 {[%clk 0:02:53]} 15. a4 {[%clk 0:02:26]}  Rfe8 {[%clk 0:02:51]} 16. Kh1 {[%clk 0:02:11]}  f6 {[%clk 0:02:49]} 17. Ng4 {[%clk 0:01:52]}  Nc6 {[%clk 0:02:46]} 18. Bh2 {[%clk 0:01:42]}  Ne7 {[%clk 0:02:45]} 19. Rfe1 {[%clk 0:01:31]}  Nf5 {[%clk 0:02:42]} 20. e4 {[%clk 0:01:28]}  dxe4 {[%clk 0:02:41]} 21. Nxe4 {[%clk 0:01:29]}  cxd4 {[%clk 0:02:41]} 22. cxd4 {[%clk 0:01:26]}  Bb4 {[%clk 0:02:40]} 23. Re2 {[%clk 0:01:19]}  Qc6 {[%clk 0:02:40]} 24. b3 {[%clk 0:01:09]}  Kh8 {[%clk 0:02:40]} 25. Bg1 {[%clk 0:01:07]}  Qd5 {[%clk 0:02:39]} 26. Ne3 {[%clk 0:01:03]}  Nxe3 {[%clk 0:02:38]} 27. Qxe3 {[%clk 0:01:02]}  Rc6 {[%clk 0:02:37]} 28. Qf2 {[%clk 0:00:39]}  Nf8 {[%clk 0:02:36]} 29. Ng3 {[%clk 0:00:39]}  f5 {[%clk 0:02:21]} 30. Nf1 {[%clk 0:00:37]}  Qd7 {[%clk 0:02:21]} 31. d5 {[%clk 0:00:34]}  Rd6 {[%clk 0:02:12]} 32. dxe6 {[%clk 0:00:33]}  Rexe6 {[%clk 0:02:13]} 33. Rxd6 {[%clk 0:00:32]}  Rxd6 {[%clk 0:02:13]} 34. Ne3 {[%clk 0:00:29]}  Ng6 {[%clk 0:02:11]} 35. Qf3 {[%clk 0:00:26]}  h6 {[%clk 0:02:07]} 36. Nc4 {[%clk 0:00:24]}  Rd1 {[%clk 0:02:05]} 37. Kh2 {[%clk 0:00:24]}  Qc7 {[%clk 0:02:04]} 38. Re8+ {[%clk 0:00:23]}  Kh7 {[%clk 0:02:02]} 39. Qxd1 {[%clk 0:00:24]}  Nxf4 {[%clk 0:02:00]} 40. g3 {[%clk 0:00:19]}  Nh5 {[%clk 0:01:59]} 41. Qxh5 {[%clk 0:00:18]}  Qd7 {[%clk 0:01:58]} 42. Qe2 {[%clk 0:00:16]} 1-0


[Site "https://www.chess.com"]

[Event "Titled Tuesday Blitz July 05 Late 2022"]
[White "Palchuk, Andrii"]
[Black "Bilych, Olexiy"]
[WhiteFideId "14176688"]
[BlackFideId "14156504"]
[WhiteElo "2338"]
[BlackElo "2189"]
[Result "0-1"]
[Round "10"]
[TimeControl "180+1"]
[Date "2022.07.05"]
[WhiteClock "0:00:01"]
[BlackClock "0:00:29"]

1. Nf3 {[%clk 0:02:57]}  d5 {[%clk 0:02:51]} 2. d4 {[%clk 0:02:55]}  Nf6 {[%clk 0:02:49]} 3. c4 {[%clk 0:02:55]}  e6 {[%clk 0:02:49]} 4. g3 {[%clk 0:02:55]}  Bb4+ {[%clk 0:02:46]} 5. Nc3 {[%clk 0:02:54]}  dxc4 {[%clk 0:02:34]} 6. Bg2 {[%clk 0:02:54]}  b5 {[%clk 0:02:35]} 7. Ne5 {[%clk 0:02:51]}  Nd5 {[%clk 0:02:35]} 8. Bd2 {[%clk 0:02:48]}  c6 {[%clk 0:02:32]} 9. a4 {[%clk 0:02:45]}  O-O {[%clk 0:02:28]} 10. O-O {[%clk 0:02:38]}  a5 {[%clk 0:02:24]} 11. Ne4 {[%clk 0:02:29]}  f6 {[%clk 0:02:09]} 12. Nf3 {[%clk 0:02:25]}  Bb7 {[%clk 0:02:01]} 13. Bxb4 {[%clk 0:02:19]}  axb4 {[%clk 0:01:42]} 14. Nc5 {[%clk 0:02:19]}  Qc8 {[%clk 0:01:39]} 15. Bh3 {[%clk 0:02:06]}  Re8 {[%clk 0:01:28]} 16. e4 {[%clk 0:02:03]}  Nc7 {[%clk 0:01:28]} 17. e5 {[%clk 0:01:57]}  f5 {[%clk 0:01:27]} 18. Ng5 {[%clk 0:01:55]}  g6 {[%clk 0:01:18]} 19. g4 {[%clk 0:01:45]}  Nba6 {[%clk 0:01:15]} 20. gxf5 {[%clk 0:01:38]}  exf5 {[%clk 0:01:07]} 21. Nce4 {[%clk 0:01:38]}  Nd5 {[%clk 0:01:03]} 22. Nd6 {[%clk 0:01:30]}  Qd7 {[%clk 0:01:03]} 23. Qf3 {[%clk 0:01:09]}  bxa4 {[%clk 0:00:51]} 24. Rxa4 {[%clk 0:01:07]}  c5 {[%clk 0:00:51]} 25. Nxb7 {[%clk 0:00:58]}  Qxb7 {[%clk 0:00:50]} 26. Bg2 {[%clk 0:00:53]}  Nac7 {[%clk 0:00:49]} 27. Rxa8 {[%clk 0:00:51]}  Rxa8 {[%clk 0:00:49]} 28. Ne6 {[%clk 0:00:44]}  Nxe6 {[%clk 0:00:42]} 29. Qxd5 {[%clk 0:00:44]}  Qxd5 {[%clk 0:00:43]} 30. Bxd5 {[%clk 0:00:44]}  Re8 {[%clk 0:00:43]} 31. dxc5 {[%clk 0:00:39]}  Kg7 {[%clk 0:00:37]} 32. c6 {[%clk 0:00:39]}  Nf4 {[%clk 0:00:35]} 33. Bf3 {[%clk 0:00:35]}  g5 {[%clk 0:00:35]} 34. Rc1 {[%clk 0:00:29]}  Rxe5 {[%clk 0:00:32]} 35. Kf1 {[%clk 0:00:20]}  Rc5 {[%clk 0:00:29]} 36. Rd1 {[%clk 0:00:18]}  c3 {[%clk 0:00:28]} 37. bxc3 {[%clk 0:00:17]}  bxc3 {[%clk 0:00:29]} 38. Rd7+ {[%clk 0:00:15]}  Kf6 {[%clk 0:00:28]} 39. Bd1 {[%clk 0:00:04]}  c2 {[%clk 0:00:28]} 40. Bxc2 {[%clk 0:00:03]}  Rxc2 {[%clk 0:00:29]} 41. c7 {[%clk 0:00:01]}  Rc1+ {[%clk 0:00:29]} 0-1


[Site "https://www.chess.com"]

[Event "Titled Tuesday Blitz July 05 Late 2022"]
[White "Petrovic, Aleksa"]
[Black "Manukian, Artak"]
[WhiteFideId "967629"]
[BlackFideId "13301373"]
[WhiteElo "2185"]
[BlackElo "2433"]
[Result "0-1"]
[Round "10"]
[TimeControl "180+1"]
[Date "2022.07.06"]
[WhiteClock "0:00:27"]
[BlackClock "0:00:25"]

1. d4 {[%clk 0:03:00]}  d5 {[%clk 0:02:59]} 2. c4 {[%clk 0:03:00]}  dxc4 {[%clk 0:03:00]} 3. e3 {[%clk 0:03:00]}  e5 {[%clk 0:02:59]} 4. Bxc4 {[%clk 0:03:00]}  exd4 {[%clk 0:02:59]} 5. exd4 {[%clk 0:02:55]}  Nf6 {[%clk 0:02:59]} 6. Qb3 {[%clk 0:02:54]}  Qe7+ {[%clk 0:02:49]} 7. Ne2 {[%clk 0:02:54]}  Qb4+ {[%clk 0:02:48]} 8. Nbc3 {[%clk 0:02:54]}  Qxb3 {[%clk 0:02:48]} 9. Bxb3 {[%clk 0:02:54]}  c6 {[%clk 0:02:39]} 10. Bg5 {[%clk 0:02:45]}  Nbd7 {[%clk 0:02:35]} 11. O-O-O {[%clk 0:02:43]}  Bd6 {[%clk 0:02:30]} 12. Ng3 {[%clk 0:02:40]}  O-O {[%clk 0:02:28]} 13. Nf5 {[%clk 0:02:39]}  Bb4 {[%clk 0:02:23]} 14. Nb1 {[%clk 0:02:31]}  Nb6 {[%clk 0:02:17]} 15. a3 {[%clk 0:02:30]}  Bxf5 {[%clk 0:02:09]} 16. axb4 {[%clk 0:02:29]}  Nfd5 {[%clk 0:02:04]} 17. Nc3 {[%clk 0:02:23]}  Nxb4 {[%clk 0:02:01]} 18. Be7 {[%clk 0:02:23]}  Nd3+ {[%clk 0:01:59]} 19. Rxd3 {[%clk 0:02:19]}  Bxd3 {[%clk 0:02:00]} 20. Bxf8 {[%clk 0:02:19]}  Kxf8 {[%clk 0:01:59]} 21. Rd1 {[%clk 0:02:15]}  Bc4 {[%clk 0:01:55]} 22. Bxc4 {[%clk 0:02:14]}  Nxc4 {[%clk 0:01:56]} 23. d5 {[%clk 0:02:14]}  Rd8 {[%clk 0:01:54]} 24. dxc6 {[%clk 0:02:12]}  Rxd1+ {[%clk 0:01:53]} 25. Kxd1 {[%clk 0:02:11]}  bxc6 {[%clk 0:01:52]} 26. Kc2 {[%clk 0:02:11]}  Ke7 {[%clk 0:01:50]} 27. Kb3 {[%clk 0:02:09]}  Ne5 {[%clk 0:01:47]} 28. f4 {[%clk 0:01:43]}  Ng4 {[%clk 0:01:29]} 29. h3 {[%clk 0:01:41]}  Ne3 {[%clk 0:01:29]} 30. g4 {[%clk 0:01:36]}  Kd6 {[%clk 0:01:22]} 31. Ne4+ {[%clk 0:01:35]}  Kd5 {[%clk 0:01:18]} 32. Ng5 {[%clk 0:01:34]}  f5 {[%clk 0:01:07]} 33. gxf5 {[%clk 0:01:23]}  h6 {[%clk 0:01:08]} 34. f6 {[%clk 0:01:22]}  gxf6 {[%clk 0:01:03]} 35. Nh7 {[%clk 0:01:18]}  f5 {[%clk 0:00:58]} 36. Nf6+ {[%clk 0:01:16]}  Kd4 {[%clk 0:00:56]} 37. h4 {[%clk 0:01:08]}  Nd5 {[%clk 0:00:53]} 38. Ng8 {[%clk 0:01:07]}  h5 {[%clk 0:00:49]} 39. Nh6 {[%clk 0:01:05]}  Ke4 {[%clk 0:00:48]} 40. Kc4 {[%clk 0:01:02]}  Nxf4 {[%clk 0:00:45]} 41. Kc5 {[%clk 0:01:01]}  Nd3+ {[%clk 0:00:44]} 42. Kxc6 {[%clk 0:01:00]}  Nxb2 {[%clk 0:00:45]} 43. Ng8 {[%clk 0:00:59]}  Ke5 {[%clk 0:00:42]} 44. Ne7 {[%clk 0:00:55]}  f4 {[%clk 0:00:39]} 45. Ng6+ {[%clk 0:00:53]}  Kf5 {[%clk 0:00:39]} 46. Ne7+ {[%clk 0:00:53]}  Kg4 {[%clk 0:00:39]} 47. Nd5 {[%clk 0:00:47]}  f3 {[%clk 0:00:37]} 48. Kb5 {[%clk 0:00:46]}  f2 {[%clk 0:00:35]} 49. Kb4 {[%clk 0:00:43]}  Kxh4 {[%clk 0:00:30]} 50. Ne3 {[%clk 0:00:43]}  Kg3 {[%clk 0:00:26]} 51. Kb3 {[%clk 0:00:37]}  Kf3 {[%clk 0:00:25]} 52. Nf1 {[%clk 0:00:33]}  Nd1 {[%clk 0:00:25]} 53. Nd2+ {[%clk 0:00:29]}  Ke2 {[%clk 0:00:24]} 54. Ne4 {[%clk 0:00:28]}  f1=Q {[%clk 0:00:24]} 55. Ng3+ {[%clk 0:00:27]}  Ke1 {[%clk 0:00:25]} 0-1


[Site "https://www.chess.com"]

[Event "Titled Tuesday Blitz July 05 Late 2022"]
[White "Preotu, Razvan"]
[Black "Martinez Alcantara, Jose Eduardo"]
[WhiteFideId "2613280"]
[BlackFideId "3805662"]
[WhiteElo "2407"]
[BlackElo "2703"]
[Result "0-1"]
[Round "10"]
[TimeControl "180+1"]
[Date "2022.07.05"]
[WhiteClock "0:00:08"]
[BlackClock "0:00:20"]

1. e4 {[%clk 0:03:00]}  c5 {[%clk 0:03:00]} 2. Nf3 {[%clk 0:03:00]}  d6 {[%clk 0:03:00]} 3. d4 {[%clk 0:03:00]}  cxd4 {[%clk 0:03:01]} 4. Nxd4 {[%clk 0:03:01]}  Nf6 {[%clk 0:03:02]} 5. Nc3 {[%clk 0:03:01]}  Nc6 {[%clk 0:03:03]} 6. Bg5 {[%clk 0:03:01]}  e6 {[%clk 0:03:03]} 7. Qd2 {[%clk 0:03:01]}  a6 {[%clk 0:03:04]} 8. O-O-O {[%clk 0:03:01]}  Bd7 {[%clk 0:03:05]} 9. f4 {[%clk 0:03:00]}  Be7 {[%clk 0:03:04]} 10. Nf3 {[%clk 0:02:59]}  b5 {[%clk 0:03:05]} 11. Bxf6 {[%clk 0:02:58]}  gxf6 {[%clk 0:03:06]} 12. Kb1 {[%clk 0:02:56]}  b4 {[%clk 0:03:04]} 13. Ne2 {[%clk 0:02:55]}  h5 {[%clk 0:03:03]} 14. f5 {[%clk 0:02:49]}  e5 {[%clk 0:03:02]} 15. Nc1 {[%clk 0:02:38]}  Qb6 {[%clk 0:02:56]} 16. Bc4 {[%clk 0:02:35]}  Rc8 {[%clk 0:02:49]} 17. Qd3 {[%clk 0:01:54]}  a5 {[%clk 0:02:10]} 18. Rhg1 {[%clk 0:01:45]}  a4 {[%clk 0:02:02]} 19. g4 {[%clk 0:01:45]}  Na5 {[%clk 0:01:54]} 20. Bd5 {[%clk 0:01:41]}  hxg4 {[%clk 0:01:35]} 21. Rxg4 {[%clk 0:01:42]}  a3 {[%clk 0:01:35]} 22. Rg7 {[%clk 0:01:25]}  Rf8 {[%clk 0:01:35]} 23. Rdg1 {[%clk 0:01:11]}  Bb5 {[%clk 0:01:16]} 24. Qd2 {[%clk 0:00:59]}  axb2 {[%clk 0:01:17]} 25. Nd3 {[%clk 0:00:40]}  Nc4 {[%clk 0:00:52]} 26. Qxb4 {[%clk 0:00:37]}  Qa6 {[%clk 0:00:50]} 27. Rg8 {[%clk 0:00:27]}  Na3+ {[%clk 0:00:46]} 28. Kxb2 {[%clk 0:00:27]}  Rxc2+ {[%clk 0:00:46]} 29. Ka1 {[%clk 0:00:26]}  Rxa2+ {[%clk 0:00:38]} 30. Kxa2 {[%clk 0:00:22]}  Nc2+ {[%clk 0:00:38]} 31. Kb2 {[%clk 0:00:22]}  Nxb4 {[%clk 0:00:38]} 32. Nxb4 {[%clk 0:00:23]}  Qb6 {[%clk 0:00:32]} 33. Bxf7+ {[%clk 0:00:18]}  Kd8 {[%clk 0:00:29]} 34. Nd5 {[%clk 0:00:08]}  Qf2+ {[%clk 0:00:27]} 35. Kc3 {[%clk 0:00:09]}  Qxf3+ {[%clk 0:00:20]} 36. Kb4 {[%clk 0:00:09]}  Be8 {[%clk 0:00:20]} 37. Bxe8 {[%clk 0:00:08]}  Qxe4+ {[%clk 0:00:20]} 0-1


[Site "https://www.chess.com"]

[Event "Titled Tuesday Blitz July 05 Late 2022"]
[White "Reprintsev, Alexander"]
[Black "Yuan, Qingyu"]
[WhiteFideId "14100541"]
[BlackFideId "8609772"]
[WhiteElo "2108"]
[BlackElo "2359"]
[Result "0-1"]
[Round "10"]
[TimeControl "180+1"]
[Date "2022.07.06"]
[WhiteClock "0:00:40"]
[BlackClock "0:00:59"]

1. e4 {[%clk 0:02:58]}  c6 {[%clk 0:03:00]} 2. b3 {[%clk 0:02:51]}  d5 {[%clk 0:03:00]} 3. Qe2 {[%clk 0:02:50]}  dxe4 {[%clk 0:02:59]} 4. Nc3 {[%clk 0:02:50]}  g6 {[%clk 0:02:55]} 5. Bb2 {[%clk 0:02:48]}  Bg7 {[%clk 0:02:54]} 6. O-O-O {[%clk 0:02:48]}  Nf6 {[%clk 0:02:50]} 7. Nxe4 {[%clk 0:02:47]}  O-O {[%clk 0:02:50]} 8. h4 {[%clk 0:02:29]}  Nbd7 {[%clk 0:02:41]} 9. h5 {[%clk 0:02:26]}  Nxh5 {[%clk 0:02:40]} 10. Bxg7 {[%clk 0:02:21]}  Kxg7 {[%clk 0:02:40]} 11. Qe3 {[%clk 0:02:14]}  Ndf6 {[%clk 0:02:34]} 12. Nxf6 {[%clk 0:02:09]}  exf6 {[%clk 0:02:31]} 13. Be2 {[%clk 0:02:08]}  Re8 {[%clk 0:02:29]} 14. Qc3 {[%clk 0:01:57]}  Nf4 {[%clk 0:02:24]} 15. Bf3 {[%clk 0:01:57]}  h5 {[%clk 0:02:13]} 16. Nh3 {[%clk 0:01:49]}  Bxh3 {[%clk 0:02:07]} 17. gxh3 {[%clk 0:01:50]}  Qd6 {[%clk 0:02:05]} 18. h4 {[%clk 0:01:43]}  Re2 {[%clk 0:02:03]} 19. Rhf1 {[%clk 0:01:39]}  Rae8 {[%clk 0:02:01]} 20. Kb1 {[%clk 0:01:39]}  R2e7 {[%clk 0:01:58]} 21. Rg1 {[%clk 0:01:33]}  Re6 {[%clk 0:01:50]} 22. a4 {[%clk 0:01:32]}  b6 {[%clk 0:01:46]} 23. Kb2 {[%clk 0:01:31]}  Nd5 {[%clk 0:01:27]} 24. Bxd5 {[%clk 0:01:30]}  Qxd5 {[%clk 0:01:27]} 25. f4 {[%clk 0:01:26]}  Re4 {[%clk 0:01:23]} 26. Rgf1 {[%clk 0:01:24]}  c5 {[%clk 0:01:15]} 27. d3 {[%clk 0:01:14]}  Re2 {[%clk 0:01:08]} 28. a5 {[%clk 0:00:58]}  b5 {[%clk 0:01:02]} 29. d4 {[%clk 0:00:51]}  c4 {[%clk 0:01:00]} 30. f5 {[%clk 0:00:42]}  R8e3 {[%clk 0:00:59]} 31. Qb4 {[%clk 0:00:42]}  Rxb3+ {[%clk 0:00:58]} 32. Qxb3 {[%clk 0:00:40]}  cxb3 {[%clk 0:00:59]} 0-1


[Site "https://www.chess.com"]